[Event "*** Titled Tuesday 3|2 Blitz"]
[Site "Chess.com"]
[Date "2015.06.02"]
[Round "5"]
[White "1random"]
[Black "MrHenriksson"]
[Result "1-0"]
[WhiteElo "2049"]
[BlackElo "2055"]
[TimeControl "180+2"]
[EndTime "12:02:43 PDT"]
[Termination "1random won by resignation"]

1. e4 {[%clk 0:03:01.9]} 1... c6 {[%clk 0:03:00.8]} 2. d4 {[%clk 0:03:02.3]}
2... d5 {[%clk 0:03:02.3]} 3. e5 {[%clk 0:03:03.9]} 3... Bf5 {[%clk 0:03:02.6]}
4. Nf3 {[%clk 0:03:05.1]} 4... e6 {[%clk 0:03:03.1]} 5. Be2 {[%clk 0:03:06.4]}
5... c5 {[%clk 0:03:02.6]} 6. Be3 {[%clk 0:03:07.1]} 6... cxd4 {[%clk
0:03:01.8]} 7. Nxd4 {[%clk 0:03:09]} 7... Ne7 {[%clk 0:03:02.5]} 8. Nd2 {[%clk
0:03:10]} 8... Nbc6 {[%clk 0:03:03.1]} 9. N2f3 {[%clk 0:03:10.9]} 9... Bg4
{[%clk 0:02:56.9]} 10. O-O {[%clk 0:03:06.7]} 10... Bxf3 {[%clk 0:02:52.5]} 11.
Nxf3 {[%clk 0:03:02.4]} 11... Ng6 {[%clk 0:02:52.9]} 12. c4 {[%clk 0:02:32.5]}
12... dxc4 {[%clk 0:02:46.5]} 13. Bxc4 {[%clk 0:02:24.6]} 13... Be7 {[%clk
0:02:46.2]} 14. Qa4 {[%clk 0:02:10.6]} 14... O-O {[%clk 0:02:45]} 15. Rfd1
{[%clk 0:02:11.3]} 15... Qc7 {[%clk 0:02:45.3]} 16. Rac1 {[%clk 0:02:11.9]}
16... Ngxe5 {[%clk 0:02:36.6]} 17. Nxe5 {[%clk 0:02:00.4]} 17... Qxe5 {[%clk
0:02:32.7]} 18. Rd7 {[%clk 0:01:51.7]} 18... Qxb2 {[%clk 0:02:32.1]} 19. Bb5
{[%clk 0:01:40.6]} 19... Bf6 {[%clk 0:02:03.2]} 20. Rxb7 {[%clk 0:01:35.4]}
20... Nd4 {[%clk 0:02:01.5]} 21. Ba6 {[%clk 0:01:23.1]} 21... Ne2+ {[%clk
0:01:31.9]} 22. Kf1 {[%clk 0:01:08.8]} 22... Nc3 {[%clk 0:01:08.3]} 23. Rxb2
{[%clk 0:00:41.9]} 23... Nxa4 {[%clk 0:01:08.1]} 24. Rb4 {[%clk 0:00:41]} 24...
Nb6 {[%clk 0:01:07.2]} 25. Bxb6 {[%clk 0:00:30.3]} 25... axb6 {[%clk 0:01:07.2]}
26. Rxb6 {[%clk 0:00:32.2]} 26... Bd4 {[%clk 0:01:01.8]} 27. Rd6 {[%clk
0:00:28.5]} 27... e5 {[%clk 0:01:01.7]} 28. Bc4 {[%clk 0:00:27.1]} 28... Rab8
{[%clk 0:00:59.6]} 29. Bb3 {[%clk 0:00:27.9]} 29... Rfc8 {[%clk 0:00:53.7]} 30.
Rxc8+ {[%clk 0:00:25.8]} 30... Rxc8 {[%clk 0:00:54.6]} 31. Rd7 {[%clk
0:00:27.5]} 31... Rf8 {[%clk 0:00:50.6]} 32. f4 {[%clk 0:00:28.3]} 32... g6
{[%clk 0:00:46.5]} 33. g4 {[%clk 0:00:22.5]} 33... Kg7 {[%clk 0:00:38.9]} 34. g5
{[%clk 0:00:23.5]} 34... h6 {[%clk 0:00:38.8]} 35. h4 {[%clk 0:00:16.9]} 35...
hxg5 {[%clk 0:00:39.3]} 36. hxg5 {[%clk 0:00:18]} 36... Bc3 {[%clk 0:00:34.9]}
37. fxe5 {[%clk 0:00:08.9]} 37... Bxe5 {[%clk 0:00:35.1]} 38. a4 {[%clk
0:00:07.9]} 38... Bf4 {[%clk 0:00:35.8]} 39. Rd5 {[%clk 0:00:09.1]} 39... Ra8
{[%clk 0:00:33.5]} 40. a5 {[%clk 0:00:09.3]} 40... Bd2 {[%clk 0:00:31.1]} 41.
Rxd2 {[%clk 0:00:09.2]} 41... Rxa5 {[%clk 0:00:31.9]} 42. Rg2 {[%clk 0:00:07]}
42... f6 {[%clk 0:00:33.2]} 43. gxf6+ {[%clk 0:00:05.9]} 43... Kxf6 {[%clk
0:00:34.3]} 44. Bc2 {[%clk 0:00:07.8]} 44... g5 {[%clk 0:00:34.7]} 45. Kf2
{[%clk 0:00:08.2]} 45... Ra2 {[%clk 0:00:32.8]} 46. Ke3 {[%clk 0:00:09.4]} 46...
Ra3+ {[%clk 0:00:33.7]} 47. Kd4 {[%clk 0:00:09]} 47... Rf3 {[%clk 0:00:32.6]}
48. Be4 {[%clk 0:00:08.6]} 48... Rf4 {[%clk 0:00:33.1]} 49. Ke3 {[%clk 0:00:10]}
49... Rf1 {[%clk 0:00:31.9]} 50. Ra2 {[%clk 0:00:10.1]} 50... Re1+ {[%clk
0:00:31]} 51. Kf3 {[%clk 0:00:10.6]} 51... Rf1+ {[%clk 0:00:31.6]} 52. Ke3
{[%clk 0:00:12]} 52... Re1+ {[%clk 0:00:32.7]} 53. Kd4 {[%clk 0:00:13.5]} 53...
Rd1+ {[%clk 0:00:33.4]} 54. Bd3 {[%clk 0:00:14.4]} 54... g4 {[%clk 0:00:33.5]}
55. Rg2 {[%clk 0:00:14.1]} 55... Kg5 {[%clk 0:00:31.9]} 56. Ke3 {[%clk
0:00:15.3]} 56... Re1+ {[%clk 0:00:33.1]} 57. Be2 {[%clk 0:00:16.2]} 57... Ra1
{[%clk 0:00:29.9]} 58. Rxg4+ {[%clk 0:00:17]} 58... Kf5 {[%clk 0:00:31]} 59. Rb4
{[%clk 0:00:16.8]} 59... Ke5 {[%clk 0:00:31.5]} 60. Rb5+ {[%clk 0:00:17.2]}
60... Kd6 {[%clk 0:00:32.5]} 61. Kd4 {[%clk 0:00:18.4]} 61... Ra4+ {[%clk
0:00:31.4]} 62. Bc4 {[%clk 0:00:19.3]} 62... Ra1 {[%clk 0:00:32]} 63. Rb6+
{[%clk 0:00:20.5]} 63... Ke7 {[%clk 0:00:31.7]} 64. Bd5 {[%clk 0:00:20.6]} 64...
Re1 {[%clk 0:00:31.5]} 65. Be4 {[%clk 0:00:21]} 65... Ra1 {[%clk 0:00:29.2]} 66.
Ke5 {[%clk 0:00:21.6]} 66... Ra5+ {[%clk 0:00:28.7]} 67. Bd5 {[%clk 0:00:22.9]}
67... Kf8 {[%clk 0:00:28.6]} 68. Rb7 {[%clk 0:00:23.3]} 68... Ra6 {[%clk
0:00:26.1]} 69. Be6 {[%clk 0:00:23.7]} 69... Ra1 {[%clk 0:00:20.7]} 70. Kf6
{[%clk 0:00:22.8]} 70... Rf1+ {[%clk 0:00:20.7]} 71. Bf5 {[%clk 0:00:24]} 71...
Re1 {[%clk 0:00:14.1]} 72. Rh7 {[%clk 0:00:23.1]} 72... Kg8 {[%clk 0:00:11.7]}
73. Rb7 {[%clk 0:00:20.4]} 73... Kf8 {[%clk 0:00:12.3]} 74. Bd3 {[%clk
0:00:18.6]} 74... Re3 {[%clk 0:00:10.8]} 75. Rb8+ {[%clk 0:00:14.1]} 75... Re8
{[%clk 0:00:10.1]} 76. Rb7 {[%clk 0:00:13.2]} 76... Re3 {[%clk 0:00:10.1]} 77.
Bg6 {[%clk 0:00:08.7]} 77... Rf3+ {[%clk 0:00:10.9]} 78. Bf5 {[%clk 0:00:08.9]}
78... Re3 {[%clk 0:00:11.2]} 79. Ra7 {[%clk 0:00:10.3]} 79... Re1 {[%clk
0:00:07.8]} 80. Bh3 {[%clk 0:00:09.3]} 80... Re3 {[%clk 0:00:08]} 81. Bg4 {[%clk
0:00:07.3]} 81... Re1 {[%clk 0:00:07.6]} 82. Ra8+ {[%clk 0:00:07.6]} 82... Re8
{[%clk 0:00:07.3]} 83. Ra3 {[%clk 0:00:07.9]} 83... Re1 {[%clk 0:00:06.5]} 84.
Bf5 {[%clk 0:00:07.9]} 84... Re3 {[%clk 0:00:05.4]} 85. Rxe3 {[%clk 0:00:08.3]}
1-0

[Event "*** Titled Tuesday 3|2 Blitz"]
[Site "Chess.com"]
[Date "2015.06.02"]
[Round "5"]
[White "SGQ"]
[Black "Recombinant"]
[Result "0-1"]
[WhiteElo "1900"]
[BlackElo "2114"]
[TimeControl "180+2"]
[EndTime "12:03:33 PDT"]
[Termination "Recombinant won by resignation"]

1. e4 {[%clk 0:02:52.6]} 1... c5 {[%clk 0:03:00.6]} 2. Nf3 {[%clk 0:02:50.7]}
2... d6 {[%clk 0:03:00.7]} 3. d4 {[%clk 0:02:51.5]} 3... cxd4 {[%clk 0:02:58.7]}
4. Nxd4 {[%clk 0:02:52.9]} 4... Nf6 {[%clk 0:02:59.7]} 5. Nc3 {[%clk 0:02:54.4]}
5... g6 {[%clk 0:03:00.6]} 6. Be3 {[%clk 0:02:54.7]} 6... Bg7 {[%clk 0:03:01.6]}
7. f3 {[%clk 0:02:55.7]} 7... Nc6 {[%clk 0:03:02.2]} 8. Qd2 {[%clk 0:02:57]}
8... O-O {[%clk 0:03:03.2]} 9. O-O-O {[%clk 0:02:58]} 9... d5 {[%clk 0:03:03.8]}
10. Kb1 {[%clk 0:02:56.1]} 10... Nxd4 {[%clk 0:03:03.1]} 11. e5 {[%clk
0:02:53.4]} 11... Nf5 {[%clk 0:03:04]} 12. exf6 {[%clk 0:02:52.8]} 12... exf6
{[%clk 0:03:03.7]} 13. Nxd5 {[%clk 0:02:36.5]} 13... Be6 {[%clk 0:02:40]} 14.
Bc5 {[%clk 0:02:24.6]} 14... Re8 {[%clk 0:02:31.8]} 15. Bb5 {[%clk 0:02:19.3]}
15... Bxd5 {[%clk 0:02:06.1]} 16. Bxe8 {[%clk 0:02:15.7]} 16... Bxa2+ {[%clk
0:02:05.4]} 17. Kxa2 {[%clk 0:02:10.1]} 17... Qxe8 {[%clk 0:02:06.4]} 18. Ba3
{[%clk 0:01:50]} 18... Qe6+ {[%clk 0:02:01.3]} 19. b3 {[%clk 0:01:48.6]} 19...
h5 {[%clk 0:01:56.3]} 20. Rhe1 {[%clk 0:01:48]} 20... Qa6 {[%clk 0:01:52.6]} 21.
Qd3 {[%clk 0:01:47.5]} 21... Qb6 {[%clk 0:01:50.5]} 22. g4 {[%clk 0:01:46.6]}
22... hxg4 {[%clk 0:01:48]} 23. fxg4 {[%clk 0:01:47.7]} 23... Nh6 {[%clk
0:01:47.6]} 24. h3 {[%clk 0:01:46.2]} 24... Rc8 {[%clk 0:01:43.9]} 25. Kb1
{[%clk 0:01:41.4]} 25... Kh7 {[%clk 0:01:36.9]} 26. Qd7 {[%clk 0:01:34.9]} 26...
Rc7 {[%clk 0:01:33.6]} 27. Qd4 {[%clk 0:01:31.3]} 27... Qc6 {[%clk 0:01:32.7]}
28. Qd3 {[%clk 0:01:26.6]} 28... f5 {[%clk 0:01:30.1]} 29. g5 {[%clk 0:01:13]}
29... Ng8 {[%clk 0:01:30.4]} 30. Bb2 {[%clk 0:01:13.2]} 30... Ne7 {[%clk
0:01:13]} 31. h4 {[%clk 0:01:13.5]} 31... Nc8 {[%clk 0:01:04.9]} 32. Bxg7 {[%clk
0:01:14.3]} 32... Kxg7 {[%clk 0:01:06]} 33. h5 {[%clk 0:01:14]} 33... a5 {[%clk
0:00:59]} 34. h6+ {[%clk 0:01:14.3]} 34... Kh7 {[%clk 0:00:59.5]} 35. c4 {[%clk
0:01:13.8]} 35... f6 {[%clk 0:00:50.4]} 36. gxf6 {[%clk 0:01:09.5]} 36... Qxf6
{[%clk 0:00:51.4]} 37. Qd4 {[%clk 0:01:09]} 37... Qxd4 {[%clk 0:00:47.4]} 38.
Rxd4 {[%clk 0:01:09.7]} 38... Kxh6 {[%clk 0:00:48.8]} 39. Re6 {[%clk 0:01:06.9]}
39... Ne7 {[%clk 0:00:35.7]} 40. Kc2 {[%clk 0:01:07]} 40... Nc6 {[%clk
0:00:35.6]} 41. Rdd6 {[%clk 0:01:07.6]} 41... Rg7 {[%clk 0:00:32.4]} 42. Kd3
{[%clk 0:01:08.3]} 42... Kh5 {[%clk 0:00:30.9]} 43. c5 {[%clk 0:01:07.5]} 43...
g5 {[%clk 0:00:23.3]} 44. Ke3 {[%clk 0:01:04.3]} 44... Kg4 {[%clk 0:00:22.3]}
45. Kf2 {[%clk 0:01:04.5]} 45... f4 {[%clk 0:00:21.7]} 46. Rd5 {[%clk
0:00:59.9]} 46... Rh7 {[%clk 0:00:21.5]} 47. Kg2 {[%clk 0:00:59.7]} 47... Rg7
{[%clk 0:00:14]} 48. Re4 {[%clk 0:00:59.6]} 48... Nb4 {[%clk 0:00:11.4]} 49. Rd2
{[%clk 0:00:56.8]} 49... Nc6 {[%clk 0:00:11.6]} 50. Rd5 {[%clk 0:00:57.2]} 50...
Rf7 {[%clk 0:00:10.2]} 51. Kf2 {[%clk 0:00:56.4]} 51... Nb4 {[%clk 0:00:10.6]}
52. Rd2 {[%clk 0:00:56.7]} 52... Rf5 {[%clk 0:00:11.5]} 53. Rc4 {[%clk
0:00:53.8]} 53... Nc6 {[%clk 0:00:11.6]} 54. Rc1 {[%clk 0:00:53.2]} 54... Kh5
{[%clk 0:00:11.5]} 55. Rh1+ {[%clk 0:00:52.8]} 55... Kg6 {[%clk 0:00:12.6]} 56.
Kf3 {[%clk 0:00:53.9]} 56... Rf6 {[%clk 0:00:11.4]} 57. Rd6 {[%clk 0:00:51.5]}
57... Ne5+ {[%clk 0:00:11.5]} 58. Ke4 {[%clk 0:00:51.7]} 58... Nf7 {[%clk
0:00:10.9]} 59. Rxf6+ {[%clk 0:00:49.3]} 59... Kxf6 {[%clk 0:00:12.8]} 60. Kf3
{[%clk 0:00:49.2]} 60... Kf5 {[%clk 0:00:13]} 61. Rh5 {[%clk 0:00:48.3]} 61...
Ne5+ {[%clk 0:00:13.6]} 62. Kf2 {[%clk 0:00:48.1]} 62... Nd3+ {[%clk 0:00:13.6]}
63. Kf3 {[%clk 0:00:48.8]} 63... Nxc5 {[%clk 0:00:15.3]} 64. Rh8 {[%clk
0:00:48.7]} 64... Nxb3 {[%clk 0:00:15.4]} 65. Rf8+ {[%clk 0:00:50.1]} 65... Ke6
{[%clk 0:00:15.7]} 66. Rb8 {[%clk 0:00:48.6]} 66... Nc5 {[%clk 0:00:15.7]} 67.
Ra8 {[%clk 0:00:48.9]} 67... a4 {[%clk 0:00:16.7]} 68. Kg4 {[%clk 0:00:49.8]}
68... Kd5 {[%clk 0:00:16.6]} 69. Kxg5 {[%clk 0:00:50]} 69... f3 {[%clk 0:00:18]}
70. Rf8 {[%clk 0:00:50.5]} 70... Ke4 {[%clk 0:00:19]} 71. Kg4 {[%clk 0:00:51.7]}
71... Nd3 {[%clk 0:00:18.5]} 72. Re8+ {[%clk 0:00:50.1]} 72... Ne5+ {[%clk
0:00:18.4]} 73. Kg3 {[%clk 0:00:50.6]} 73... b5 {[%clk 0:00:19.1]} 74. Rb8
{[%clk 0:00:50.5]} 74... Kd3 {[%clk 0:00:15.7]} 75. Rxb5 {[%clk 0:00:51]} 75...
Nc6 {[%clk 0:00:16.9]} 76. Rc5 {[%clk 0:00:49.4]} 76... Nd4 {[%clk 0:00:17.6]}
77. Ra5 {[%clk 0:00:49.3]} 77... Ke3 {[%clk 0:00:18.1]} 78. Rxa4 {[%clk
0:00:49.5]} 78... f2 {[%clk 0:00:18.8]} 79. Kg2 {[%clk 0:00:45.6]} 79... Ne2
{[%clk 0:00:17.7]} 80. Ra3+ {[%clk 0:00:45.7]} 80... Kf4 {[%clk 0:00:15.3]} 81.
Kxf2 {[%clk 0:00:46.3]} 81... Nd4 {[%clk 0:00:16]} 82. Ra4 {[%clk 0:00:47.4]}
82... Ke5 {[%clk 0:00:17.2]} 83. Ke3 {[%clk 0:00:48.6]} 83... Nf5+ {[%clk
0:00:18.5]} 84. Kf3 {[%clk 0:00:49.5]} 84... Nd6 {[%clk 0:00:19.5]} 85. Ra5+
{[%clk 0:00:50.2]} 85... Kd4 {[%clk 0:00:20.1]} 86. Kf4 {[%clk 0:00:50.8]} 86...
Nc4 {[%clk 0:00:20.9]} 87. Ra8 {[%clk 0:00:49.6]} 87... Kd5 {[%clk 0:00:21.5]}
88. Rd8+ {[%clk 0:00:50]} 88... Kc5 {[%clk 0:00:22]} 89. Ke4 {[%clk 0:00:49.8]}
89... Nd6+ {[%clk 0:00:23]} 90. Kd3 {[%clk 0:00:49.3]} 90... Kd5 {[%clk
0:00:21.9]} 91. Rd7 {[%clk 0:00:49.7]} 91... Ke5 {[%clk 0:00:22.1]} 92. Re7+
{[%clk 0:00:50]} 92... Kd5 {[%clk 0:00:23.1]} 93. Re1 {[%clk 0:00:50.2]} 93...
Kc5 {[%clk 0:00:21.2]} 94. Re5+ {[%clk 0:00:50.3]} 94... Kc6 {[%clk 0:00:22.4]}
95. Kd4 {[%clk 0:00:50.5]} 95... Nb5+ {[%clk 0:00:23.8]} 96. Kc4 {[%clk
0:00:51.2]} 96... Nd6+ {[%clk 0:00:24.9]} 97. Kb4 {[%clk 0:00:52.8]} 97... Nb7
{[%clk 0:00:23.5]} 98. Rh5 {[%clk 0:00:52.5]} 98... Nd6 {[%clk 0:00:23.8]} 99.
Ra5 {[%clk 0:00:53.2]} 99... Nb7 {[%clk 0:00:24.2]} 100. Ra6+ {[%clk 0:00:53.9]}
100... Kd5 {[%clk 0:00:25.4]} 101. Kc3 {[%clk 0:00:52.8]} 101... Nc5 {[%clk
0:00:26.1]} 102. Rh6 {[%clk 0:00:53.3]} 102... Ne4+ {[%clk 0:00:27]} 103. Kd3
{[%clk 0:00:53.5]} 103... Nc5+ {[%clk 0:00:28.1]} 104. Ke3 {[%clk 0:00:54.4]}
104... Nd7 {[%clk 0:00:24.9]} 105. Ra6 {[%clk 0:00:53.4]} 105... Nc5 {[%clk
0:00:25.9]} 106. Ra5 {[%clk 0:00:53.8]} 106... Kc4 {[%clk 0:00:24.6]} 107. Kd2
{[%clk 0:00:53.9]} 107... Kd4 {[%clk 0:00:23.9]} 108. Rb5 {[%clk 0:00:54.2]}
108... Kc4 {[%clk 0:00:24.6]} 109. Rb8 {[%clk 0:00:50.3]} 109... Kd4 {[%clk
0:00:23.4]} 0-1

[Event "*** Titled Tuesday 3|2 Blitz"]
[Site "Chess.com"]
[Date "2015.06.02"]
[Round "6"]
[White "9ShMat2"]
[Black "jcibarra"]
[Result "1-0"]
[WhiteElo "2514"]
[BlackElo "2534"]
[TimeControl "180+2"]
[EndTime "12:09:54 PDT"]
[Termination "9ShMat2 won by resignation"]

1. e4 {[%clk 0:03:01.8]} 1... e5 {[%clk 0:02:59.5]} 2. Nf3 {[%clk 0:03:02.1]}
2... d6 {[%clk 0:02:59.2]} 3. d4 {[%clk 0:03:03.3]} 3... exd4 {[%clk 0:03:00.4]}
4. Nxd4 {[%clk 0:03:05.2]} 4... Nf6 {[%clk 0:03:01.7]} 5. Nc3 {[%clk 0:03:05.9]}
5... Be7 {[%clk 0:03:02.7]} 6. Be3 {[%clk 0:03:06.4]} 6... O-O {[%clk
0:03:02.9]} 7. Qd2 {[%clk 0:03:07.6]} 7... d5 {[%clk 0:02:58]} 8. exd5 {[%clk
0:03:02.5]} 8... Nxd5 {[%clk 0:02:58]} 9. O-O-O {[%clk 0:03:04.1]} 9... Nxe3
{[%clk 0:02:53]} 10. Qxe3 {[%clk 0:03:04.8]} 10... Nd7 {[%clk 0:02:50.1]} 11.
Bc4 {[%clk 0:02:56.6]} 11... c6 {[%clk 0:02:45.3]} 12. Kb1 {[%clk 0:02:53.7]}
12... Bf6 {[%clk 0:02:15.6]} 13. Ne4 {[%clk 0:02:45.2]} 13... Qb6 {[%clk
0:02:16.3]} 14. Rhe1 {[%clk 0:02:38.2]} 14... a5 {[%clk 0:01:44]} 15. c3 {[%clk
0:02:28.5]} 15... a4 {[%clk 0:01:43.6]} 16. f4 {[%clk 0:02:06.2]} 16... a3
{[%clk 0:01:29.5]} 17. b3 {[%clk 0:02:03.6]} 17... Ra5 {[%clk 0:01:28.9]} 18.
Nd6 {[%clk 0:01:59.2]} 18... Rc5 {[%clk 0:00:54.5]} 19. Nxc8 {[%clk 0:01:33]}
19... Rxc8 {[%clk 0:00:54.2]} 20. Bxf7+ {[%clk 0:01:33.3]} 20... Kh8 {[%clk
0:00:44.3]} 21. Qe8+ {[%clk 0:01:21.6]} 1-0

[Event "*** Titled Tuesday 3|2 Blitz"]
[Site "Chess.com"]
[Date "2015.06.02"]
[Round "6"]
[White "Tilicheev_Viacheslav"]
[Black "GGuseinov"]
[Result "1-0"]
[WhiteElo "2438"]
[BlackElo "2484"]
[TimeControl "180+2"]
[EndTime "12:09:56 PDT"]
[Termination "Tilicheev_Viacheslav won by resignation"]

1. e4 {[%clk 0:03:01.9]} 1... c5 {[%clk 0:03:00.7]} 2. Nf3 {[%clk 0:02:59.3]}
2... Nc6 {[%clk 0:02:59.7]} 3. Nc3 {[%clk 0:02:59.5]} 3... g6 {[%clk 0:03:00.1]}
4. d4 {[%clk 0:02:56.5]} 4... cxd4 {[%clk 0:03:00.3]} 5. Nxd4 {[%clk 0:02:58.4]}
5... Bg7 {[%clk 0:02:59.1]} 6. Be3 {[%clk 0:02:59.5]} 6... Nf6 {[%clk
0:02:30.3]} 7. Bc4 {[%clk 0:02:56.1]} 7... O-O {[%clk 0:02:30.4]} 8. Bb3 {[%clk
0:02:56]} 8... Qa5 {[%clk 0:02:27.1]} 9. O-O {[%clk 0:02:56.3]} 9... d6 {[%clk
0:02:16.9]} 10. h3 {[%clk 0:02:56.2]} 10... Bd7 {[%clk 0:02:17.2]} 11. Re1
{[%clk 0:02:55.4]} 11... Rac8 {[%clk 0:02:12.3]} 12. Nd5 {[%clk 0:02:51.1]}
12... Nxd5 {[%clk 0:01:53.4]} 13. exd5 {[%clk 0:02:48.4]} 13... Ne5 {[%clk
0:01:54.2]} 14. Qe2 {[%clk 0:02:44]} 14... Qc7 {[%clk 0:01:49]} 15. c3 {[%clk
0:02:39.5]} 15... Rfe8 {[%clk 0:01:40.7]} 16. f4 {[%clk 0:02:32.4]} 16... Nc4
{[%clk 0:01:40.9]} 17. Bf2 {[%clk 0:02:33.9]} 17... a6 {[%clk 0:01:35.6]} 18. a4
{[%clk 0:02:31.4]} 18... b5 {[%clk 0:01:32.1]} 19. axb5 {[%clk 0:02:30.1]} 19...
axb5 {[%clk 0:01:28.8]} 20. Nf3 {[%clk 0:02:26.9]} 20... Ra8 {[%clk 0:01:17.3]}
21. Rxa8 {[%clk 0:02:25.4]} 21... Rxa8 {[%clk 0:01:19.2]} 22. Qxe7 {[%clk
0:02:26.6]} 22... Re8 {[%clk 0:01:17.7]} 23. Qxe8+ {[%clk 0:01:59.7]} 23... Bxe8
{[%clk 0:01:19.6]} 24. Rxe8+ {[%clk 0:02:01]} 24... Bf8 {[%clk 0:01:20.2]} 25.
Ng5 {[%clk 0:02:02.9]} 25... Qd7 {[%clk 0:01:15]} 26. Ne4 {[%clk 0:01:49.6]}
26... Qf5 {[%clk 0:01:15.6]} 27. Bxc4 {[%clk 0:01:39.7]} 27... bxc4 {[%clk
0:01:13.7]} 28. Be3 {[%clk 0:01:41.6]} 28... f6 {[%clk 0:01:04.3]} 29. g4 {[%clk
0:01:39.8]} 1-0

[Event "*** Titled Tuesday 3|2 Blitz"]
[Site "Chess.com"]
[Date "2015.06.02"]
[Round "6"]
[White "only_defence"]
[Black "Daniel_Fridman"]
[Result "0-1"]
[WhiteElo "2142"]
[BlackElo "2530"]
[TimeControl "180+2"]
[EndTime "12:10:06 PDT"]
[Termination "Daniel_Fridman won by resignation"]

1. d4 {[%clk 0:03:01.9]} 1... Nf6 {[%clk 0:03:00.9]} 2. c4 {[%clk 0:03:00.9]}
2... e6 {[%clk 0:03:01]} 3. Nc3 {[%clk 0:03:01.5]} 3... c5 {[%clk 0:03:01.5]} 4.
Nf3 {[%clk 0:03:01.7]} 4... cxd4 {[%clk 0:03:01]} 5. Nxd4 {[%clk 0:03:02.5]}
5... Bb4 {[%clk 0:03:02.5]} 6. Qd3 {[%clk 0:02:55.6]} 6... Nc6 {[%clk 0:03:00]}
7. a3 {[%clk 0:02:55.5]} 7... Bxc3+ {[%clk 0:02:53.1]} 8. Qxc3 {[%clk
0:02:55.4]} 8... O-O {[%clk 0:02:53.7]} 9. Nxc6 {[%clk 0:02:56.2]} 9... bxc6
{[%clk 0:02:53.3]} 10. g3 {[%clk 0:02:53.3]} 10... d5 {[%clk 0:02:54.2]} 11. Bg2
{[%clk 0:02:53.5]} 11... Rb8 {[%clk 0:02:53.8]} 12. Bf4 {[%clk 0:02:44.6]} 12...
Rb7 {[%clk 0:02:51.8]} 13. O-O {[%clk 0:02:43.5]} 13... h6 {[%clk 0:02:51]} 14.
c5 {[%clk 0:02:43.4]} 14... Re8 {[%clk 0:02:51.1]} 15. b4 {[%clk 0:02:40.5]}
15... Nd7 {[%clk 0:02:46.3]} 16. Bd6 {[%clk 0:02:34.8]} 16... e5 {[%clk
0:02:40.2]} 17. Rfd1 {[%clk 0:02:28.7]} 17... Qg5 {[%clk 0:02:38.3]} 18. Qc2
{[%clk 0:02:23]} 18... Nf6 {[%clk 0:02:37.9]} 19. Qa4 {[%clk 0:02:18.4]} 19...
Bd7 {[%clk 0:02:36]} 20. Qa6 {[%clk 0:02:17.1]} 20... Rb5 {[%clk 0:02:31.7]} 21.
Qxa7 {[%clk 0:02:09.3]} 21... Qh5 {[%clk 0:02:32.1]} 22. Rab1 {[%clk 0:01:57]}
22... Qxe2 {[%clk 0:02:18.8]} 23. Bf1 {[%clk 0:01:54.2]} 23... Qh5 {[%clk
0:02:15.3]} 24. a4 {[%clk 0:01:52.2]} 24... Rxb4 {[%clk 0:02:16.1]} 25. Rxb4
{[%clk 0:01:44.6]} 25... Qxd1 {[%clk 0:02:15.9]} 26. Rb7 {[%clk 0:01:25.6]}
26... Bh3 {[%clk 0:02:09.6]} 27. Qa6 {[%clk 0:01:27]} 27... Ne4 {[%clk
0:02:00.3]} 28. Qe2 {[%clk 0:01:23]} 28... Qa1 {[%clk 0:01:53.2]} 29. Rb2 {[%clk
0:01:13]} 29... Nc3 {[%clk 0:01:51.5]} 0-1

[Event "*** Titled Tuesday 3|2 Blitz"]
[Site "Chess.com"]
[Date "2015.06.02"]
[Round "6"]
[White "GMNeiksans"]
[Black "facu57"]
[Result "0-1"]
[WhiteElo "2497"]
[BlackElo "2215"]
[TimeControl "180+2"]
[EndTime "12:10:27 PDT"]
[Termination "facu57 won by resignation"]

1. Nf3 {[%clk 0:03:01.9]} 1... c6 {[%clk 0:02:57.2]} 2. g3 {[%clk 0:02:59.3]}
2... d5 {[%clk 0:02:58.2]} 3. Bg2 {[%clk 0:03:00.6]} 3... Nf6 {[%clk 0:02:57.6]}
4. O-O {[%clk 0:03:01.6]} 4... Bf5 {[%clk 0:02:48.5]} 5. d3 {[%clk 0:03:02.3]}
5... Nbd7 {[%clk 0:02:45.6]} 6. Nbd2 {[%clk 0:03:02.8]} 6... e5 {[%clk
0:02:41.4]} 7. Qe1 {[%clk 0:02:56]} 7... Bd6 {[%clk 0:02:36.9]} 8. e4 {[%clk
0:02:56.5]} 8... Bg6 {[%clk 0:02:34.6]} 9. Nh4 {[%clk 0:02:56.3]} 9... a6 {[%clk
0:02:30.8]} 10. Qe2 {[%clk 0:02:55.7]} 10... Bh5 {[%clk 0:02:23.8]} 11. Bf3
{[%clk 0:02:56.2]} 11... Bxf3 {[%clk 0:02:18.8]} 12. Ndxf3 {[%clk 0:02:57.3]}
12... O-O {[%clk 0:02:20.7]} 13. Nf5 {[%clk 0:02:57.6]} 13... Bc7 {[%clk
0:02:15.1]} 14. Bg5 {[%clk 0:02:58.6]} 14... h6 {[%clk 0:02:11.3]} 15. Nxh6+
{[%clk 0:02:55.7]} 15... gxh6 {[%clk 0:02:07.4]} 16. Bxh6 {[%clk 0:02:57.1]}
16... Re8 {[%clk 0:02:05.7]} 17. Nh4 {[%clk 0:02:58.4]} 17... Nc5 {[%clk
0:01:58.1]} 18. Nf5 {[%clk 0:02:48.2]} 18... Ne6 {[%clk 0:01:51.2]} 19. c3
{[%clk 0:02:26.9]} 19... Kh8 {[%clk 0:01:46.3]} 20. Qf3 {[%clk 0:02:09.5]} 20...
Rg8 {[%clk 0:01:43.4]} 21. Qg2 {[%clk 0:02:10.7]} 21... Rg6 {[%clk 0:01:39]} 22.
Be3 {[%clk 0:02:07.7]} 22... Kg8 {[%clk 0:01:34.4]} 23. Nh6+ {[%clk 0:01:46.4]}
23... Kf8 {[%clk 0:01:29.8]} 24. Nf5 {[%clk 0:01:45.1]} 24... Kg8 {[%clk
0:01:21.5]} 25. Rad1 {[%clk 0:01:44.2]} 25... Nf4 {[%clk 0:01:15.8]} 26. Qf3
{[%clk 0:01:41]} 26... d4 {[%clk 0:01:12.6]} 27. cxd4 {[%clk 0:01:41.1]} 27...
Nh3+ {[%clk 0:01:05.5]} 28. Kg2 {[%clk 0:01:41.3]} 28... exd4 {[%clk 0:00:55.7]}
29. Bxd4 {[%clk 0:01:29.2]} 29... Ng5 {[%clk 0:00:52.5]} 30. Qe2 {[%clk
0:01:30.1]} 30... Ne6 {[%clk 0:00:47.8]} 31. Bc3 {[%clk 0:01:30.7]} 31... Nf4+
{[%clk 0:00:47.7]} 0-1